fUST/lending_fUST_20250227
["ID","MTS","AMOUNT","RATE_DAILY","PERIOD"]
[354700310,1740628252061,-500.0,0.00046849,120]
[354700311,1740628252070,-500.0,0.00046849,120]
[354700312,1740628252080,-3984.43,0.00046849,120]
[354700313,1740628252090,-500.0,0.00046849,120]
[354700314,1740628252099,-411.97706113,0.00046849,120]
[354700315,1740628252109,-500.0,0.00046849,45]
[354700316,1740628252118,-2259.95,0.00046849,120]
[354700317,1740628252127,-556.29,0.00046849,120]
[354700318,1740628252136,-500.0,0.00046849,120]
[354700319,1740628252146,-500.0,0.00046849,120]
[354700320,1740628252156,-191.78995191,0.00046849,120]
[354700321,1740628252166,-695.37,0.00046849,120]
[354700322,1740628252176,-500.0,0.00046849,120]
[354700323,1740628252185,-8295.33,0.00046849,120]
[354700324,1740628252194,-500.0,0.00046849,120]
[354700325,1740628252204,-500.0,0.00046849,120]
[354700326,1740628252213,-500.0,0.00046849,120]
[354700327,1740628252222,-200.0,0.00046849,7]
[354700328,1740628252231,-500.0,0.00046849,120]
[354700329,1740628252242,-502.93999454,0.00046849,120]
[354700330,1740628252254,-8301.02,0.00046849,120]
[354700331,1740628252263,-399.92405719,0.00046849,120]
[354700332,1740628252272,-500.0,0.00046849,30]
[354700333,1740628252281,-500.0,0.00046849,120]
[354700334,1740628252292,-575.08251649,0.00046849,120]
[354700335,1740628252301,-426.16516203,0.00046849,120]
[354700336,1740628252310,-500.0,0.00046849,120]
[354700337,1740628252319,-500.0,0.00046849,120]
[354700338,1740628252328,-151.0,0.00046849,120]
[354700339,1740628252338,-170.521586,0.00046849,120]
[354700340,1740628252347,-3138.87,0.00046849,120]
[354700341,1740628252357,-10308.78,0.00046849,120]
[354700342,1740628252366,-150.41572293,0.00046849,120]
[354700343,1740628252375,-695.35,0.00046849,120]
[354700344,1740628252384,-500.0,0.00046849,120]
[354700345,1740628252395,-865.92,0.00046849,120]
[354700346,1740628252404,-505.97887833,0.00046849,120]
[354700347,1740628252414,-643.09,0.00046849,120]
[354700348,1740628252423,-683.42,0.00046849,120]
[354700349,1740628252432,-613.33,0.00046849,120]
[354700350,1740628252442,-500.0,0.00046849,120]
[354700351,1740628252452,-1232.06,0.00046849,120]
[354700352,1740628252462,-500.0,0.00046849,120]
[354700353,1740628252471,-1229.79,0.00046849,120]
[354700354,1740628252480,-500.0,0.00046849,120]
[354700355,1740628252490,-500.0,0.00046849,120]
[354700356,1740628252499,-500.0,0.00046849,120]
[354700357,1740628252509,-510.77186579,0.00046849,120]
[354700358,1740628252518,-500.0,0.00046849,120]
[354700359,1740628252528,-500.0,0.00046849,120]
[354700360,1740628252537,-500.0,0.00046849,120]
[354700361,1740628252547,-500.0,0.00046849,120]
[354700362,1740628252556,-500.0,0.00046849,120]
[354700363,1740628252565,-500.0,0.00046849,120]
[354700364,1740628252574,-500.0,0.00046849,120]
[354700365,1740628252584,-2522.78,0.00046849,120]
[354700366,1740628252593,-4090.11,0.00046849,120]
[354700367,1740628252602,-500.0,0.00046849,120]
[354700368,1740628252611,-867.06,0.00046849,120]
[354700369,1740628252621,-500.0,0.00046849,120]
[354700370,1740628252630,-500.0,0.00046849,120]
[354700371,1740628252639,-34808.5,0.00046849,120]
[354700372,1740628252648,-507.09019103,0.00046849,120]
[354700373,1740628252657,-500.0,0.00046849,120]
[354700374,1740628252667,-687.85,0.00046849,120]
[354700375,1740628252676,-2334.79,0.00046849,120]
[354700376,1740628252685,-1614.21,0.00046849,120]
[354700377,1740628252694,-764.11,0.00046849,30]
[354700378,1740628252703,-500.0,0.00046849,120]
[354700379,1740628252713,-500.0,0.00046849,120]
[354700380,1740628252722,-500.0,0.00046849,120]
[354700381,1740628252731,-500.0,0.00046849,120]
[354700382,1740628252740,-2464.65,0.00046849,120]
[354700383,1740628252749,-500.0,0.00046849,120]
[354700384,1740628252758,-1450.75,0.00046849,120]
[354700385,1740628252769,-2595.68,0.00046849,120]
[354700386,1740628252783,-1197.24,0.00046849,120]
[354700387,1740628252792,-500.0,0.00046849,120]
[354700388,1740628252802,-500.0,0.00046849,120]
[354700389,1740628252812,-13048.53,0.00046849,3]
[354700390,1740628252822,-298.4884716,0.00046849,120]
[354700391,1740628252831,-504.50185385,0.00046849,120]
[354700392,1740628252841,-153542.56,0.00046849,7]
[354700393,1740628252851,-500.0,0.00046849,120]
[354700394,1740628252860,-500.0,0.00046849,120]
[354700395,1740628252869,-532.57,0.00046849,120]
[354700396,1740628252879,-500.0,0.00046849,120]
[354700397,1740628252889,-500.0,0.00046849,120]
[354700398,1740628252898,-603.2,0.00046849,120]
[354700399,1740628252908,-958.0,0.00046849,120]
[354700400,1740628252919,-1104.37,0.00046849,120]
[354700401,1740628252929,-154.217598,0.00046849,120]
[354700402,1740628252939,-154.217598,0.00046849,120]
[354700403,1740628252948,-154.217598,0.00046849,120]
[354700404,1740628252960,-500.0,0.00046849,120]
[354700405,1740628252970,-2839.71,0.00046849,120]
[354700406,1740628252979,-500.0,0.00046849,120]
[354700407,1740628252989,-154.217598,0.00046849,120]
[354700408,1740628252998,-154.217598,0.00046849,120]
[354700409,1740628253007,-154.217598,0.00046849,120]
[354700410,1740628253017,-500.0,0.00046849,120]
[354700411,1740628253026,-5470.17,0.00046849,120]
[354700412,1740628253035,-7242.19,0.00046849,120]
[354700413,1740628253045,-500.0,0.00046849,120]
[354700414,1740628253055,-500.0,0.00046849,120]
[354700415,1740628253064,-500.0,0.00046849,120]
[354700416,1740628253073,-2743.43,0.00046849,120]
[354700417,1740628253083,-626.33744682,0.00046849,120]
[354700418,1740628253092,-527.89,0.00046849,120]
[354700419,1740628253225,-996.57,0.00046849,120]
[354700420,1740628253235,-1000.0,0.00046849,2]
[354700421,1740628253244,-500.0,0.00046849,120]
[354700422,1740628253254,-1728.95,0.00046849,120]
[354700423,1740628253264,-600.0,0.00046849,120]
[354700424,1740628253276,-646.95,0.00046849,120]
[354700425,1740628253285,-500.0,0.00046849,120]
[354700426,1740628253294,-500.0,0.00046849,120]
[354700427,1740628253304,-1688.72,0.00046849,120]
[354700428,1740628253313,-500.0,0.00046849,120]
[354700429,1740628253322,-500.0,0.00046849,120]
[354700430,1740628253332,-2120.19,0.00046849,120]
[354700431,1740628253341,-317.44752717,0.00046849,120]
[354700432,1740628253351,-500.0,0.00046849,120]
[354700433,1740628253360,-1964.78,0.00046849,120]
[354700434,1740628253370,-500.0,0.00046849,120]
[354700435,1740628253379,-555.59,0.00046849,120]
[354700436,1740628253389,-500.0,0.00046849,120]
[354700437,1740628253398,-808.9,0.00046849,120]
[354700438,1740628253407,-500.0,0.00046849,120]
[354700439,1740628253416,-500.0,0.00046849,120]
[354700440,1740628253426,-1610.4,0.00046849,120]
[354700441,1740628253435,-500.0,0.00046849,120]
[354700442,1740628253444,-500.0,0.00046849,120]
[354700443,1740628253453,-500.0,0.00046849,120]
[354700444,1740628253462,-500.0,0.00046849,120]
[354700445,1740628253471,-1101.6,0.00046849,120]
[354700446,1740628253480,-810.57,0.00046849,120]
[354700447,1740628253489,-6705.2,0.00046849,120]
[354700448,1740628253499,-1676.08,0.00046849,120]
[354700449,1740628253508,-555.96,0.00046849,120]
[354700450,1740628253517,-500.0,0.00046849,120]
[354700451,1740628253527,-901.17,0.00046849,120]
[354700452,1740628253536,-151.0,0.00046849,120]
[354700453,1740628253545,-151.0,0.00046849,120]
[354700454,1740628253555,-4004.22,0.00046849,120]
[354700455,1740628253563,-774.83,0.00046849,120]
[354700456,1740628253573,-151.0,0.00046849,120]
[354700457,1740628253582,-1652.01,0.00046849,120]
[354700458,1740628253591,-500.0,0.00046849,120]
[354700459,1740628253601,-449.56818694,0.00046849,120]
[354700460,1740628253610,-754.66,0.00046849,120]
[354700461,1740628253619,-500.0,0.00046849,120]
[354700462,1740628253628,-500.0,0.00046849,120]
[354700463,1740628253638,-2847.41,0.00046849,120]
[354700464,1740628253647,-4146.58,0.00046849,120]
[354700465,1740628253656,-909.96,0.00046849,120]
[354700466,1740628253666,-500.0,0.00046849,120]
[354700467,1740628253675,-496.89127237,0.00046849,120]
[354700468,1740628253684,-203.63948,0.00046849,120]
[354700469,1740628253693,-203.63948,0.00046849,120]
[354700470,1740628253702,-953.72,0.00046849,120]
[354700471,1740628253711,-203.63948,0.00046849,120]
[354700472,1740628253720,-500.0,0.00046849,21]
[354700473,1740628253729,-203.63948,0.00046849,120]
[354700474,1740628253739,-203.63948,0.00046849,120]
[354700475,1740628253748,-203.639476,0.00046849,120]
[354700476,1740628253759,-518.24860747,0.00046849,120]
[354700477,1740628253768,-500.0,0.00046849,120]
[354700478,1740628253781,-500.0,0.00046849,120]
[354700479,1740628253790,-500.0,0.00046849,120]
[354700480,1740628253799,-2180.11,0.00046849,120]
[354700481,1740628253808,-500.0,0.00046849,120]
[354700482,1740628253819,-9224.05,0.00046849,120]
[354700483,1740628253829,-500.0,0.00046849,120]
[354700484,1740628253839,-940.96,0.00046849,120]
[354700485,1740628253848,-500.0,0.00046849,120]
[354700486,1740628253859,-500.0,0.00046849,120]
[354700487,1740628253869,-500.0,0.00046849,120]
[354700488,1740628253878,-932.99,0.00046849,120]
[354700489,1740628253887,-233.947092,0.00046849,120]
[354700490,1740628253898,-3421.28,0.00046849,120]
[354700491,1740628253909,-1586.05,0.00046849,120]
[354700492,1740628253918,-500.0,0.00046849,120]
[354700493,1740628253929,-500.0,0.00046849,120]
[354700494,1740628253939,-500.0,0.00046849,120]
[354700495,1740628253948,-390.4429472,0.00046849,120]
[354700496,1740628253960,-500.0,0.00046849,120]
[354700497,1740628253969,-500.0,0.00046849,120]
[354700498,1740628253979,-681.54,0.00046849,120]
[354700499,1740628253989,-2023.72,0.00046849,120]
[354700500,1740628254000,-922.98,0.00046849,120]
[354700501,1740628254009,-500.0,0.00046849,120]
[354700502,1740628254019,-500.0,0.00046849,120]
[354700503,1740628254030,-500.0,0.00046849,120]
[354700504,1740628254038,-941.41,0.00046849,120]
[354700505,1740628254047,-500.0,0.00046849,120]
[354700506,1740628254058,-577.23,0.00046849,120]
[354700507,1740628254067,-500.0,0.00046849,120]
[354700508,1740628254076,-500.0,0.00046849,120]
[354700509,1740628254086,-503.15,0.00046849,120]
[354700510,1740628254095,-500.0,0.00046849,120]
[354700511,1740628254105,-1260.11,0.00046849,120]
[354700512,1740628254115,-28610.81,0.00046849,6]
[354700513,1740628254124,-500.0,0.00046849,120]
[354700514,1740628254133,-475.43962598,0.00046849,120]
[354700515,1740628254142,-500.0,0.00046849,120]
[354700516,1740628254151,-500.0,0.00046849,120]
[354700517,1740628254160,-500.0,0.00046849,120]
[354700518,1740628254169,-500.0,0.00046849,120]
[354700519,1740628254178,-2143.37,0.00046849,120]
[354700520,1740628254187,-40083.14,0.00046849,120]
[354700521,1740628254197,-18029.97,0.00046849,120]
[354700522,1740628254206,-172.325518,0.00046849,120]
[354700523,1740628254215,-500.0,0.00046849,120]
[354700524,1740628254224,-172.325518,0.00046849,120]
[354700525,1740628254233,-500.0,0.00046849,120]
[354700526,1740628254242,-172.325518,0.00046849,120]
[354700527,1740628254251,-582.03865145,0.00046849,120]
[354700528,1740628254260,-7683.19,0.00046849,120]
[354700529,1740628254269,-500.0,0.00046849,120]
[354700530,1740628254277,-172.325518,0.00046849,120]
[354700531,1740628254287,-500.0,0.00046849,120]
[354700532,1740628254295,-172.325518,0.00046849,120]
[354700533,1740628254304,-172.325513,0.00046849,120]
[354700534,1740628254314,-500.0,0.00046849,120]
[354700535,1740628254323,-500.0,0.00046849,120]
[354700536,1740628254332,-2007.34,0.00046849,120]
[354700537,1740628254342,-500.0,0.00046873,10]
[354700538,1740628254351,-501.37557294,0.00046873,10]
[354700539,1740628254360,-578.5731128,0.00046873,10]
[354700540,1740628254369,-500.0,0.00046873,10]
[354700541,1740628254379,-500.0,0.00046873,10]
[354700542,1740628254388,-500.0,0.00046873,10]
[354700543,1740628254397,-200.0,0.00046873,10]
[354700544,1740628254406,-500.0,0.00046873,10]
[354700545,1740628254416,-500.0,0.00046873,10]
[354700546,1740628254426,-502.42120629,0.00046873,10]
[354700547,1740628254435,-502.28210458,0.00046873,5]
[354700548,1740628254444,-312.22190453,0.00046873,10]
[354700549,1740628254453,-500.0,0.00046873,10]
[354700550,1740628254462,-500.0,0.00046873,10]
[354700551,1740628254471,-500.0,0.00046873,10]
[354700552,1740628254480,-500.0,0.00046873,10]
[354700553,1740628254489,-500.0,0.00046873,10]
[354700554,1740628254499,-502.28001331,0.00046873,10]
[354700555,1740628254508,-500.0,0.00046873,10]
[354700556,1740628254518,-501.59866313,0.00046873,10]
[354700557,1740628254528,-500.0,0.00046873,10]
[354700558,1740628254542,-500.0,0.00046873,10]
[354700559,1740628254561,-1500.0,0.00046873,120]
[354700560,1740628254577,-275.22554109,0.000469,10]
[354700561,1740628254587,-225.0,0.0004695,75]
[354700562,1740628254597,-625.19351101,0.00047085,120]
[354700563,1740628254606,-500.0,0.00047123,120]
[354700564,1740628254615,-593.15,0.00047123,120]
[354700565,1740628254624,-500.0,0.00047123,120]
[354700566,1740628254633,-500.0,0.00047123,120]
[354700567,1740628254643,-500.0,0.00047123,120]
[354700568,1740628254652,-570.65,0.00047123,120]
[354700569,1740628254661,-780.41,0.00047123,120]
[354700570,1740628254670,-500.0,0.00047123,120]
[354700571,1740628254679,-500.0,0.00047123,120]
[354700572,1740628254688,-566.38,0.00047123,120]
[354700573,1740628254698,-220.98884203,0.00047123,120]
[354700574,1740628254707,-388.49287353,0.00047123,120]
[354700575,1740628254719,-500.0,0.00047123,120]
[354700576,1740628254728,-500.0,0.00047123,120]
[354700577,1740628254737,-797.05,0.00047123,120]
[354700578,1740628254746,-500.0,0.00047123,120]
[354700579,1740628254755,-500.0,0.00047123,120]
[354700580,1740628254764,-500.0,0.00047123,120]
[354700581,1740628254776,-367.10711262,0.00047123,120]
[354700582,1740628254786,-500.0,0.00047123,120]
[354700583,1740628254795,-500.0,0.00047123,120]
[354700584,1740628254804,-500.0,0.00047123,120]
[354700585,1740628254816,-500.0,0.00047123,120]
[354700586,1740628254826,-500.0,0.00047123,120]
[354700587,1740628254837,-768.39,0.00047123,120]
[354700588,1740628254847,-500.0,0.00047123,120]
[354700589,1740628254856,-500.0,0.00047123,120]
[354700590,1740628254867,-827.32,0.00047123,120]
[354700591,1740628254876,-580.19596284,0.00047123,120]
[354700592,1740628254885,-1418.83,0.00047123,120]
[354700593,1740628254894,-500.0,0.00047123,120]
[354700594,1740628254903,-500.0,0.00047123,120]
[354700595,1740628254913,-500.0,0.00047123,120]
[354700596,1740628254922,-517.38217029,0.00047123,120]
[354700597,1740628254931,-500.0,0.00047123,120]
[354700598,1740628254941,-500.0,0.00047123,120]
[354700599,1740628254949,-852.35,0.00047123,120]
[354700600,1740628254958,-500.0,0.00047123,120]
[354700601,1740628254968,-150.35,0.00047123,30]
[354700602,1740628254977,-200.06056557,0.00047123,30]
[354700603,1740628254987,-500.0,0.00047123,120]
[354700604,1740628254996,-500.0,0.00047123,120]
[354700605,1740628255005,-500.0,0.00047123,120]
[354700606,1740628255014,-500.0,0.00047123,120]
[354700607,1740628255023,-560.69,0.00047123,120]
[354700608,1740628255033,-500.0,0.00047123,120]
[354700609,1740628255042,-500.0,0.00047123,120]
[354700610,1740628255051,-949.2,0.00047123,120]
[354700611,1740628255062,-500.0,0.00047123,120]
[354700612,1740628255071,-524.86,0.00047123,120]
[354700613,1740628255081,-500.0,0.00047123,120]
[354700614,1740628255092,-500.0,0.00047123,120]
[354700615,1740628255101,-500.0,0.00047123,120]
[354700616,1740628255111,-500.0,0.00047123,120]
[354700617,1740628255120,-500.0,0.00047123,120]
[354700618,1740628255130,-500.0,0.00047123,120]
[354700619,1740628255139,-500.0,0.00047123,120]
[354700620,1740628255148,-500.0,0.00047123,120]
[354700621,1740628255157,-934.32,0.00047123,120]
[354700622,1740628255166,-958.18,0.00047123,120]
[354700623,1740628255175,-572.69,0.00047123,120]
[354700624,1740628255185,-632.92,0.00047123,120]
[354700625,1740628255194,-1164.98,0.00047123,120]
[354700626,1740628255203,-500.0,0.00047123,120]
[354700627,1740628255212,-500.0,0.00047123,120]
[354700628,1740628255221,-500.0,0.00047123,120]
[354700629,1740628255230,-537.53283438,0.00047123,120]
[354700630,1740628255240,-710.62,0.00047123,120]
[354700631,1740628255249,-197.24196433,0.00047123,120]
[354700632,1740628255258,-1692.42,0.00047123,120]
[354700633,1740628255268,-500.0,0.00047123,120]
[354700634,1740628255277,-854.19,0.00047123,120]
[354700635,1740628255287,-500.0,0.00047123,120]
[354700636,1740628255296,-500.0,0.00047123,120]
[354700637,1740628255305,-500.0,0.00047123,120]
[354700638,1740628255313,-1073.14,0.00047123,120]
[354700639,1740628255323,-813.29,0.00047123,120]
[354700640,1740628255333,-500.0,0.00047123,120]
[354700641,1740628255343,-500.0,0.00047123,120]
[354700642,1740628255352,-500.0,0.00047123,120]
[354700643,1740628255363,-500.0,0.00047123,120]
[354700644,1740628255372,-785.56,0.00047123,120]
[354700645,1740628255381,-927.55,0.00047123,120]
[354700646,1740628255391,-1218.01,0.00047123,120]
[354700647,1740628255401,-500.0,0.00047123,120]
[354700648,1740628255411,-822.03,0.00047123,120]
[354700649,1740628255420,-751.57,0.00047123,120]
[354700650,1740628255429,-500.0,0.00047123,120]
[354700651,1740628255439,-500.0,0.00047123,120]
[354700652,1740628255448,-897.58,0.00047123,120]
[354700653,1740628255457,-1602.4,0.00047123,120]
[354700654,1740628255466,-755.76,0.00047123,120]
[354700655,1740628255475,-2936.95,0.00047123,120]
[354700656,1740628255484,-500.0,0.00047123,120]
[354700657,1740628255493,-500.0,0.00047123,120]
[354700658,1740628255504,-500.0,0.00047123,120]
[354700659,1740628255514,-500.0,0.00047123,120]
[354700660,1740628255523,-500.0,0.00047123,120]
[354700661,1740628255533,-500.0,0.00047123,120]
[354700662,1740628255543,-500.0,0.00047123,120]
[354700663,1740628255552,-500.0,0.00047123,120]
[354700664,1740628255561,-500.0,0.00047123,120]
[354700665,1740628255570,-500.0,0.00047123,120]
[354700666,1740628255579,-500.0,0.00047123,120]
[354700667,1740628255589,-500.0,0.00047123,120]
[354700668,1740628255598,-500.0,0.00047123,120]
[354700669,1740628255607,-500.0,0.00047123,120]
[354700670,1740628255616,-690.81,0.00047123,120]
[354700671,1740628255626,-500.0,0.00047123,120]
[354700672,1740628255635,-2038.67,0.00047123,120]
[354700673,1740628255644,-500.0,0.00047123,120]
[354700674,1740628255654,-525.21812275,0.00047123,120]
[354700675,1740628255663,-500.0,0.00047123,120]
[354700676,1740628255672,-3236.64,0.00047123,120]
[354700677,1740628255681,-500.0,0.00047123,120]
[354700678,1740628255693,-500.0,0.00047123,120]
[354700679,1740628255703,-500.0,0.00047123,120]
[354700680,1740628255714,-300.0,0.00047123,120]
[354700681,1740628255724,-969.61,0.00047123,120]
[354700682,1740628255734,-543.74,0.00047123,120]
[354700683,1740628255745,-2040.43,0.00047123,120]
[354700684,1740628255757,-500.0,0.00047123,120]
[354700685,1740628255767,-500.0,0.00047123,120]
[354700686,1740628255897,-658.16,0.00047123,120]
[354700687,1740628255907,-3045.52,0.00047123,120]
[354700688,1740628255916,-584.76,0.00047123,120]
[354700689,1740628255925,-500.0,0.00047123,120]
[354700690,1740628255934,-500.0,0.00047123,120]
[354700691,1740628255944,-500.0,0.00047123,120]
[354700692,1740628255953,-500.0,0.00047123,120]
[354700693,1740628255962,-500.98870221,0.00047123,120]
[354700694,1740628255971,-4367.33,0.00047123,120]
[354700695,1740628255980,-500.0,0.00047123,120]
[354700696,1740628255990,-500.0,0.00047123,120]
[354700697,1740628255999,-1365.33,0.00047123,120]
[354700698,1740628256008,-1534.47,0.00047123,120]
[354700699,1740628256017,-1512.89,0.00047123,120]
[354700700,1740628256026,-500.0,0.00047123,120]
[354700701,1740628256035,-689.11,0.00047123,120]
[354700702,1740628256045,-877.5,0.00047123,120]
[354700703,1740628256054,-2559.48,0.00047123,120]
[354700704,1740628256063,-500.0,0.00047123,120]
[354700705,1740628256073,-500.0,0.00047123,120]
[354700706,1740628256082,-685.48,0.00047123,120]
[354700707,1740628256092,-715.45,0.00047123,120]
[354700708,1740628256103,-1386.85,0.00047123,120]
[354700709,1740628256115,-500.0,0.00047123,120]
[354700710,1740628256125,-624.46,0.00047123,120]
[354700711,1740628256134,-627.78,0.00047123,120]
[354700712,1740628256142,-500.0,0.00047123,120]
[354700713,1740628256154,-725.02,0.00047123,120]
[354700714,1740628256164,-1947.97,0.00047123,120]
[354700715,1740628256173,-500.0,0.00047123,120]
[354700716,1740628256185,-1773.59,0.00047123,120]
[354700717,1740628256195,-500.0,0.00047123,120]
[354700718,1740628256206,-630.32250991,0.00047123,120]
[354700719,1740628256218,-1783.55,0.00047123,120]
[354700720,1740628256228,-748.91,0.00047123,120]
[354700721,1740628256238,-500.0,0.00047123,120]
[354700722,1740628256250,-3613.6,0.00047123,120]
[354700723,1740628256259,-500.0,0.00047123,120]
[354700724,1740628256269,-500.0,0.00047123,120]
[354700725,1740628256278,-881.2,0.00047123,120]
[354700726,1740628256287,-1733.96,0.00047123,120]
[354700727,1740628256298,-500.0,0.00047123,120]
[354700728,1740628256310,-500.0,0.00047123,30]
[354700729,1740628256319,-500.0,0.00047123,120]
[354700730,1740628256330,-686.53,0.00047123,120]
[354700731,1740628256340,-500.0,0.00047123,120]
[354700732,1740628256350,-500.0,0.00047123,120]
[354700733,1740628256360,-500.0,0.00047123,30]
[354700734,1740628256369,-524.21,0.00047123,120]
[354700735,1740628256378,-1543.48,0.00047123,120]
[354700736,1740628256388,-500.0,0.00047123,120]
[354700737,1740628256397,-524.27,0.00047123,120]
[354700738,1740628256407,-500.0,0.00047123,120]
[354700739,1740628256416,-500.0,0.00047123,120]
[354700740,1740628256425,-500.0,0.00047123,120]
[354700741,1740628256435,-1270.7,0.00047123,120]
[354700742,1740628256444,-1474.69,0.00047123,120]
[354700743,1740628256453,-500.0,0.00047123,120]
[354700744,1740628256462,-772.19,0.00047123,120]
[354700745,1740628256471,-823.67,0.00047123,120]
[354700746,1740628256481,-500.0,0.00047123,120]
[354700747,1740628256490,-264.84377771,0.00047123,120]
[354700748,1740628256499,-1328.16,0.00047123,120]
[354700749,1740628256509,-500.0,0.00047123,120]
[354700750,1740628256518,-2621.87,0.00047123,120]
[354700751,1740628256527,-2850.7,0.00047123,120]
[354700752,1740628256537,-500.0,0.00047123,120]
[354700753,1740628256547,-2280.7,0.00047123,120]
[354700754,1740628256556,-1028.4,0.00047123,120]
[354700755,1740628256565,-947.89,0.00047123,120]
[354700756,1740628256575,-645.66,0.00047123,120]
[354700757,1740628256584,-500.0,0.00047123,120]
[354700758,1740628256594,-806.86,0.00047123,120]
[354700759,1740628256603,-500.0,0.00047123,120]
[354700760,1740628256612,-868.62,0.00047123,120]
[354700761,1740628256621,-500.0,0.00047123,120]
[354700762,1740628256630,-500.0,0.00047123,15]
[354700763,1740628256639,-500.0,0.00047123,120]
[354700764,1740628256649,-500.0,0.00047123,120]
[354700765,1740628256658,-500.0,0.00047123,120]
[354700766,1740628256667,-741.48,0.00047123,120]
[354700767,1740628256676,-500.0,0.00047123,120]
[354700768,1740628256685,-525.65,0.00047123,120]
[354700769,1740628256694,-598.57,0.00047123,120]
[354700770,1740628256704,-691.43,0.00047123,120]
[354700771,1740628256713,-1395.46,0.00047123,120]
[354700772,1740628256722,-500.0,0.00047123,120]
[354700773,1740628256732,-500.0,0.00047123,120]
[354700774,1740628256741,-504.0225416,0.00047123,120]
[354700775,1740628256750,-504.63789493,0.00047123,120]
[354700776,1740628256759,-500.0,0.00047123,120]
[354700777,1740628256769,-500.0,0.00047123,120]
[354700778,1740628256778,-500.0,0.00047123,120]
[354700779,1740628256788,-931.39,0.00047123,120]
[354700780,1740628256797,-500.0,0.00047123,120]
[354700781,1740628256806,-628.55,0.00047123,120]
[354700782,1740628256815,-500.0,0.00047123,120]
[354700783,1740628256826,-852.74,0.00047123,120]
[354700784,1740628256836,-3144.25,0.00047123,120]
[354700785,1740628256846,-500.0,0.00047123,120]
[354700786,1740628256856,-500.0,0.00047123,120]
[354700787,1740628256866,-500.0,0.00047123,120]
[354700788,1740628256875,-1407.54,0.00047123,120]
[354700789,1740628256884,-500.0,0.00047123,120]
[354700790,1740628256893,-750.76,0.00047123,120]
[354700791,1740628256903,-500.0,0.00047123,120]
[354700792,1740628256912,-3592.26,0.00047123,120]
[354700793,1740628256922,-500.0,0.00047123,120]
[354700794,1740628256933,-500.0,0.00047123,120]
[354700795,1740628256944,-1094.94,0.00047123,120]
[354700796,1740628256954,-1662.16,0.00047123,120]
[354700797,1740628256964,-500.0,0.00047123,120]
[354700798,1740628256974,-500.0,0.00047123,120]
[354700799,1740628256984,-500.0,0.00047123,120]
[354700800,1740628256994,-3984.43,0.00047123,120]
[354700801,1740628257003,-500.0,0.00047123,45]
[354700802,1740628257013,-2259.95,0.00047123,120]
[354700803,1740628257022,-556.29,0.00047123,120]
[354700804,1740628257031,-500.0,0.00047123,120]
[354700805,1740628257041,-500.0,0.00047123,120]
[354700806,1740628257050,-695.37,0.00047123,120]
[354700807,1740628257060,-501.79277828,0.00047123,120]
[354700808,1740628257069,-8295.33,0.00047123,120]
[354700809,1740628257079,-500.0,0.00047123,120]